fUSD/lending_fUSD_20241107
["ID","MTS","AMOUNT","RATE_DAILY","PERIOD"]
[341511673,1730939433855,-203.19798515,0.0003789,12]
[341511674,1730939433868,-625.64554776,0.0003789,3]
[341511675,1730939433879,-150.0,0.00037899,2]
[341511676,1730939433889,-37943.1008,0.000379,2]
[341511677,1730939433899,-169.01803015,0.000379,11]
[341511678,1730939433908,-236.01992898,0.000379,2]
[341511679,1730939433919,-2194.27816325,0.000379,2]
[341511680,1730939433932,-150.0,0.00037924,2]
[341511681,1730939433945,-150.0,0.0003795,2]
[341511682,1730939433956,-1500.0,0.00037958,2]
[341511683,1730939433966,-150.0,0.00037964,2]
[341511684,1730939433975,-150.0,0.00037967,2]
[341511685,1730939433985,-150.0,0.00037971,2]
[341511686,1730939433995,-160.19775736,0.00037973,5]
[341511687,1730939434004,-512.76213776,0.00037973,2]
[341511688,1730939434014,-150.0,0.00037983,2]
[341511689,1730939434023,-150.0,0.00037987,2]
[341511690,1730939434033,-150.0,0.00037988,2]
[341511691,1730939434043,-72964.53665594,0.0003799,3]
[341511698,1730939438173,-13601.0,0.00035002,2]
[341511699,1730939438185,-150.0,0.00036352,2]
[341511700,1730939438194,-95.48543048,0.00036468,2]
[341511701,1730939438529,-54.51456952,0.00036468,2]
[341511702,1730939438538,-150.0,0.00036502,2]
[341511703,1730939438547,-150.0,0.00036739,2]
[341511704,1730939438556,-150.0,0.00036751,2]
[341511705,1730939438565,-150.0,0.00036758,2]
[341511706,1730939438574,-150.0,0.00036759,2]
[341511707,1730939438583,-150.0,0.00036969,2]
[341511708,1730939438592,-150.0,0.00036997,2]
[341511709,1730939438601,-150.0,0.00037006,2]
[341511710,1730939438610,-150.0,0.00037017,2]
[341511711,1730939438619,-150.0,0.00037045,2]
[341511712,1730939438628,-150.0,0.00037113,2]
[341511713,1730939438637,-150.0,0.00037128,2]
[341511714,1730939438646,-150.0,0.00037229,2]
[341511715,1730939438656,-150.0,0.00037242,2]
[341511716,1730939438665,-150.0,0.00037334,2]
[341511717,1730939438675,-150.0,0.0003752,2]
[341511718,1730939438684,-150.0,0.00037617,2]
[341511719,1730939438693,-150.0,0.0003766,2]
[341511720,1730939438702,-150.0,0.00037812,2]
[341511721,1730939438711,-150.0,0.00037822,2]
[341511722,1730939438721,-150.0,0.00037842,2]
[341511723,1730939438730,-150.0,0.00037856,2]
[341511724,1730939438739,-150.0,0.00037859,2]
[341511725,1730939438748,-150.0,0.00037875,2]
[341511726,1730939438757,-150.0,0.00037973,2]
[341511727,1730939438766,-7079.38876495,0.0003799,3]
[341511741,1730939439059,-2984.0,0.0003799,3]
[341511750,1730939439134,-1202.89847644,0.0003799,3]
[341511850,1730939440215,-1157.0,0.00035002,2]
[341511852,1730939440224,-1699.49671094,0.0003799,3]
[341511877,1730939440471,-1588.0785302,0.0003799,3]
[341511879,1730939440486,-373.529,0.0003799,3]
[341511964,1730939441330,178.28,0.00015342,2]
[341512145,1730939443146,-401.41351344,0.00035002,2]
[341512152,1730939443204,-1585.58648656,0.00035002,2]
[341512154,1730939443219,-155.02,0.00035381,2]
[341512157,1730939443234,-155.02,0.0003715,2]
[341512159,1730939443244,-110471.25322522,0.0003799,3]
[341512173,1730939443367,-21.08750037,0.0003799,3]
[341512186,1730939443484,-1484.78111832,0.0003799,3]
[341512395,1730939446168,-716.24573015,0.000379,2]
[341512396,1730939446224,-3885.74700367,0.000379,2]
[341512397,1730939446237,-55309.38306033,0.0003799,3]
[341512398,1730939446252,-16802.98778635,0.0003799,3]
[341512399,1730939446286,-10628.88548494,0.0003799,3]
[341512400,1730939446299,-4431.61451506,0.0003799,3]
[341512406,1730939446555,-135543.19064694,0.0003799,3]
[341512408,1730939446568,-2284.0,0.0003799,4]
[341512410,1730939446582,-71263.66590692,0.0003799,3]
[341512412,1730939446598,-2208.0943131,0.0003799,3]
[341512413,1730939446625,-4680.76730618,0.0003799,3]
[341512416,1730939958903,-1045.0,0.000273,3]
[341512418,1730939994957,175.03,0.00015342,2]
[341512419,1730939999657,-571.35425,0.0003,2]
[341512420,1730940219714,-250.0,0.00021,2]
[341512421,1730940223662,-300.0,0.00023,2]
[341512422,1730940224383,-350.0,0.00025,2]
[341512423,1730940224924,-400.0,0.00026986,120]
[341512424,1730940236657,-180.72,0.00026986,120]
[341512426,1730940352272,-507.29987887,0.00020635,2]
[341512427,1730940442117,-400.0,0.00027,2]
[341512428,1730940442138,-450.0,0.00029,2]
[341512429,1730940442158,-12.84773737,0.00030137,2]
[341512430,1730940449108,-558.50651263,0.00030137,2]
[341512431,1730940449130,-500.0,0.00031,2]
[341512432,1730940449150,-550.0,0.00033,2]
[341512433,1730940449170,-862.6,0.00033641,2]
[341512434,1730940449193,-306.01,0.00034702,2]
[341512435,1730940449213,-170.43,0.00034702,2]
[341512436,1730940449232,-999.99,0.00034702,2]
[341512437,1730940449252,-5000.0,0.00035,10]
[341512438,1730940449272,-600.0,0.00035,2]
[341512439,1730940449293,-306.01,0.0003526,2]
[341512440,1730940449313,-249.54,0.00035383,120]
[341512441,1730940449334,-21073.01693029,0.00035395,2]
[341512442,1730940453100,-2826.98306971,0.00035395,2]
[341512443,1730940453121,-160.32,0.00035406,120]
[341512444,1730940453141,-2104.7,0.00035415,2]
[341512445,1730940453161,-221.08,0.00035471,2]
[341512446,1730940453181,-974.09,0.000356,2]
[341512447,1730940453205,-537.0249,0.0003566,7]
[341512448,1730940453226,-250.0,0.00035689,120]
[341512449,1730940453246,-200.0,0.00035717,7]
[341512450,1730940453266,-300.0,0.00035717,2]
[341512451,1730940453286,-1962.59,0.00035727,2]
[341512452,1730940453305,-168.67,0.00035728,2]
[341512453,1730940453324,-1022.65383448,0.00035752,2]
[341512454,1730940496106,152.14,0.00015342,2]
[341512456,1730940554142,-152.14,0.0003272,2]
[341512457,1730940611294,1116.78323758,0.0003272,2]
[341512462,1730940632236,-876.68,0.000356,2]
[341512463,1730940632246,-65.3549409,0.00035814,120]
[341512464,1730940632316,-99.7750591,0.00035814,120]
[341512465,1730940632326,-306.01,0.00035817,2]
[341512466,1730940632336,-862.6,0.00035905,2]
[341512467,1730940632347,-500.0,0.00035975,120]
[341512468,1730940632357,-1000.0,0.00036138,2]
[341512469,1730940632366,-352.78,0.00036138,120]
[341512470,1730940632376,-905.972,0.00036138,44]
[341512471,1730940632385,-2083.35,0.00036187,2]
[341512472,1730940632395,-155.02,0.00036291,2]
[341512473,1730940632405,-524.65,0.00036315,2]
[341512474,1730940632415,-124.18258173,0.00036375,2]
[341512475,1730940632427,-181.82741827,0.00036375,2]
[341512476,1730940632436,-167.61,0.00036395,120]
[341512477,1730940632446,-852.63785287,0.00036399,2]
[341512478,1730940632457,-393.36214713,0.00036399,2]
[341512479,1730940632467,-150.0,0.00036399,2]
[341512480,1730940632477,-156.63785287,0.00036399,2]
[341512481,1730940632546,-1830.36214713,0.00036399,2]
[341512482,1730940632557,-557.0,0.00036399,2]
[341512483,1730940632567,-1794.0,0.00036399,2]
[341512484,1730940632577,-746.4209904,0.00036399,2]
[341512485,1730940632590,-509.5790096,0.00036399,2]
[341512486,1730940632599,-813.0,0.00036399,2]
[341512487,1730940632608,-2906.0,0.00036399,2]
[341512488,1730940632618,-3359.0,0.00036399,2]
[341512489,1730940632628,-13601.0,0.00036399,2]
[341512490,1730940632638,-5279.3,0.00036399,2]
[341512491,1730940632647,-965.29240852,0.00036399,2]
[341512492,1730940632662,-191.70759148,0.00036399,2]
[341512493,1730940632672,-150.16884988,0.00036933,2]
[341512494,1730940632710,-155.84115012,0.00036933,2]
[341512495,1730940632720,-650.0,0.00037,2]
[341512496,1730940632730,-306.01,0.0003749,2]
[341512497,1730940632740,-164.33076736,0.00037517,2]
[341512572,1730940638423,-349.37773264,0.00037517,2]
[341512573,1730940638432,-258.97859349,0.0003763,2]
[341512574,1730940638482,-192.03210651,0.0003763,2]
[341512575,1730940638492,-1066.70885515,0.0003765,2]
[341512576,1730940638643,-66384.49433687,0.0003765,2]
[341512705,1730940640279,-30740.52002838,0.0003765,2]
[341512706,1730940640290,-500.0,0.0003768,60]
[341512707,1730940640299,-500.0,0.0003768,60]
[341512708,1730940640308,-5166.14349148,0.0003768,15]
[341512709,1730940640317,-563.01441714,0.0003769,2]
[341512710,1730940640327,-311.42792814,0.0003769,2]
[341512711,1730940640336,-4337.2445,0.0003769,2]
[341512712,1730940640347,-170.99604331,0.000377,2]
[341512713,1730940640356,-191.9027502,0.000377,11]
[341512714,1730940640366,-560.4075,0.000377,2]
[341512715,1730940640375,-1713.038,0.000377,2]
[341512716,1730940640384,-169.01803015,0.000377,11]
[341512717,1730940640393,-3067.99515588,0.000377,2]
[341512718,1730940640402,-157.34661932,0.000377,2]
[341512719,1730940640411,-1992.82452364,0.000377,2]
[341512720,1730940640421,-500.0,0.00037789,15]
[341512721,1730940640430,-500.0,0.00037789,15]
[341512722,1730940640439,-500.0,0.00037789,15]
[341512723,1730940640449,-299.84936915,0.00037789,15]
[341512724,1730940640458,-500.0,0.00037789,15]
[341512725,1730940640467,-173307.60157545,0.0003779,3]
[341512726,1730940640482,-27108.7116586,0.0003779,3]
[341512727,1730940640493,-616.525332,0.0003779,3]
[341512728,1730940640621,-1192.01242269,0.0003779,3]
[341512729,1730940640770,-337.01347931,0.0003779,3]
[341512730,1730940640789,-715.93551094,0.0003779,3]
[341512731,1730940640800,-900.0,0.0003779,3]
[341512732,1730940640811,-467.89291831,0.0003779,3]
[341512733,1730940640822,-1893.55275912,0.0003779,3]
[341512734,1730940640833,-10882.39070669,0.0003779,3]
[341512735,1730940640923,-1092.92696245,0.0003779,3]
[341512736,1730940640942,-345.848555,0.0003779,3]
[341512737,1730940640964,-1165.66171912,0.0003779,3]
[341512743,1730940643715,-23651.56089032,0.0003779,3]
[341512744,1730940643725,-51126.11410969,0.0003779,3]
[341512745,1730940643773,-150.0,0.00036399,2]
[341512746,1730940643784,-5595.10787789,0.0003779,3]
[341512747,1730940643798,-1420.81335364,0.0003779,3]
[341512748,1730940643810,-5525.4327484,0.0003779,3]
[341512749,1730940643884,-520.2443575,0.0003779,3]
[341512750,1730940643898,-9761.4603277,0.0003779,3]
[341512751,1730940643943,-36234.20326718,0.0003779,3]
[341512752,1730940643952,-16346.42304254,0.0003779,3]
[341512771,1730940646507,-500.0,0.00037789,15]
[341512772,1730940646518,-843.4755883,0.0003779,3]
[341512773,1730940647787,-298.25522794,0.00037789,15]
[341512774,1730940647796,-3165.75626585,0.0003779,3]
[341512775,1730940647807,-676.42575,0.0003779,3]
[341512776,1730940647999,-95.87197085,0.0003779,3]
[341512779,1730941094198,163.29,0.00015342,2]
[341512792,1730941619710,157.45,0.00015342,2]
[341512793,1730941654144,-168.59925,0.0003,2]
[341512794,1730941654174,-594.42217085,0.00034533,2]
[341512798,1730941835035,-199.25782915,0.00034533,2]
[341512799,1730941835046,-155.14,0.00034912,2]
[341512800,1730941835060,-250.0,0.00035398,120]
[341512801,1730941835070,-739.8335,0.00035462,2]
[341512802,1730941835080,-161.53085577,0.00035507,120]
[341512803,1730941835101,-120.68914423,0.00035507,120]
[341512804,1730941835110,-539.01085557,0.00035525,2]
[341512809,1730941837479,-460.98914443,0.00035525,2]
[341512810,1730941837489,-155.02,0.00035525,2]
[341512811,1730941837501,-926.5025848,0.00035563,2]
[341512846,1730941839591,-1504.58,0.00035563,2]
[341512847,1730941839716,-251.84478965,0.00035563,2]
[341512848,1730941839727,-1365.44000002,0.00035563,2]
[341512869,1730941842453,-911.71582123,0.00035563,2]
[341512877,1730941842518,-270.98,0.00035563,2]
[341512883,1730941842584,-5023.43332303,0.00035563,2]
[341512887,1730941842705,-289.20000052,0.00035563,2]
[341512895,1730941845479,-2829.73960146,0.00035563,2]
[341512896,1730941845596,-10526.56387929,0.00035563,2]
[341512897,1730941845605,-789.02,0.000356,2]
[341512898,1730941845615,-160.32,0.000356,120]
[341512899,1730941845623,-157.45,0.00035616,2]
[341512900,1730941845632,-221.08,0.00035697,2]
[341512901,1730941845641,-200.0,0.00035697,7]
[341512902,1730941845650,-94.70895151,0.00035854,120]
[341512903,1730941845860,-64.51104849,0.00035854,120]
[341512904,1730941845870,-80.86004023,0.00035893,2]
[341512906,1730941861326,274.0,0.00019725,2]
[341512907,1730941873329,8371.17847497,0.000323,5]
[341512908,1730941873350,3177.82152503,0.000323,5]
[341512909,1730941873526,11549.0,0.000316,3]
[341512910,1730941874319,1378.0,0.000309,2]
[341512911,1730941879524,200.0,0.00023,2]
[341512912,1730941882604,392.01675,0.0003,2]
[341512913,1730941883985,392.01675,0.0003,2]
[341512914,1730941892390,753.99,0.00033938,2]
[341512915,1730941895114,740.129,0.0003,2]
[341512916,1730941895192,740.129,0.00030505,2]
[341512917,1730941907431,2008.0,0.000275,3]
[341512918,1730941908046,1807.0,0.000275,3]
[341512919,1730941920954,174.65,0.00030137,2]
[341512920,1730941935764,500.0,0.0003101,30]
[341512921,1730941936093,500.0,0.0003101,30]
[341512922,1730941936414,500.0,0.0003101,30]
[341512923,1730941936445,435.27117497,0.00031,30]
[341512924,1730941936465,97.18847447,0.00031,30]
[341512925,1730941937464,830.53894671,0.00031,30]
[341512926,1730941942109,500.0,0.0003101,30]
[341512927,1730941942471,500.0,0.0003101,30]
[341512928,1730941942808,500.0,0.0003101,30]
[341512929,1730941943131,500.0,0.00031,30]
[341512930,1730941943472,13.47631282,0.00031,30]
[341512931,1730941943494,486.52368718,0.00031,30]
[341512932,1730941943807,504.44748779,0.00031,30]
[341512933,1730941944309,151.0,0.0003,120]
[341512934,1730941948056,500.0,0.0003101,30]
[341512935,1730941948197,530.56192374,0.00031,30]
[341512936,1730941949685,500.0,0.0003101,30]
[341512937,1730941950012,500.0,0.0003101,30]
[341512939,1730941972065,150.0,0.00018123,2]
[341512940,1730941981542,300.0,0.00019725,2]
[341512941,1730942013565,150.0,0.00018123,2]
[341512942,1730942030779,250.0,0.00021,2]
[341512943,1730942123249,157.01,0.00015342,2]
[341512959,1730942630720,178.28,0.00015342,2]
[341512961,1730942708056,48493.97,0.00016,2]
[341512962,1730942708083,2573.45729996,0.00016,2]
[341512963,1730942708108,22900.62729996,0.00016,2]
[341512964,1730942708135,16267.09332574,0.00016,2]
[341512967,1730942836186,-278.55336786,0.00022,2]
[341512968,1730942849122,-837.4387087,0.00022,2]
[341512984,1730942950091,-9336.65792343,0.00022,2]
[341512985,1730942950111,-1392.1366304,0.000229,2]
[341512986,1730942950131,-300.0,0.00023,2]
[341512987,1730942950151,-25742.51215787,0.00023922,2]
[341512988,1730942950171,-9178.47099708,0.00023999,2]
[341512989,1730942950190,-1938.74679645,0.000241,2]
[341512990,1730942950210,-350.0,0.00025,2]
[341512991,1730942950231,-5759.90284946,0.00025,2]
[341512992,1730942950256,-4288.01601847,0.00025,2]
[341512993,1730942950279,-400.0,0.00027,2]
[341512994,1730942950300,-1990.0,0.000274,3]
[341512995,1730942955157,-450.0,0.00029,2]
[341512996,1730942955179,-589.19958584,0.00029,2]
[341512997,1730942955201,-5831.88980016,0.000299,2]
[341512998,1730942958519,-19357.00903336,0.000299,2]
[341512999,1730942958542,-1003.88,0.0002995,2]
[341513000,1730942958562,-5011.49326861,0.00029951,2]
[341513001,1730942958584,-515.69,0.0002999,10]
[341513002,1730942958605,-184.5795,0.0003,2]
[341513003,1730942958626,-951.02,0.0003,2]
[341513004,1730942958646,-366.702,0.0003,2]
[341513005,1730942958667,-9637.75992254,0.0003,14]
[341513006,1730942958687,-9223.91295549,0.0003,15]
[341513007,1730942966096,-5963.61056125,0.0003,15]
[341513008,1730942966122,-5566.50563877,0.0003,2]
[341513009,1730942966141,-3924.43368816,0.0003,2]
[341513010,1730942966161,-2000.0,0.0003,14]
[341513011,1730942966179,-3105.54989319,0.0003,120]
[341513012,1730942966205,-274.3446133,0.0003,30]
[341513013,1730942966225,-8276.53234913,0.0003,2]
[341513014,1730942966245,-152.0,0.00030042,3]
[341513015,1730942966271,-900.0,0.00030116,2]
[341513016,1730942966302,-152.0,0.00030587,4]
[341513017,1730942966321,-4417.0,0.000307,3]
[341513018,1730942966344,-250.0,0.000308,30]
[341513019,1730942966363,-500.0,0.00031,2]
[341513020,1730942966383,-409.2514591,0.00031,32]
[341513021,1730942966402,-323.21453373,0.00031,5]
[341513022,1730942966422,-997.83827242,0.0003101,30]
[341513023,1730942966442,-500.0,0.0003101,30]
[341513024,1730942966462,-500.0,0.0003101,30]
[341513025,1730942966483,-500.0,0.0003101,30]
[341513026,1730942966505,-500.0,0.0003101,30]
[341513027,1730942966527,-500.0,0.0003101,30]
[341513028,1730942966547,-676.68545989,0.0003101,30]
[341513029,1730942966567,-558.12344265,0.0003101,30]
[341513030,1730942966587,-504.33733414,0.0003101,30]
[341513031,1730942966606,-505.70869983,0.0003101,30]
[341513032,1730942966625,-500.0,0.0003101,30]
[341513033,1730942966644,-504.96841451,0.0003101,30]
[341513034,1730942966663,-500.0,0.0003101,30]
[341513035,1730942966682,-500.0,0.0003101,30]
[341513036,1730942966702,-500.0,0.0003101,30]
[341513037,1730942966725,-500.0,0.0003101,30]
[341513038,1730942966744,-500.0,0.0003101,30]
[341513039,1730942966763,-609.73759369,0.0003101,30]
[341513040,1730942966786,-500.0,0.0003101,30]
[341513041,1730942966805,-500.0,0.0003101,30]
[341513042,1730942966823,-786.35163831,0.0003101,30]
[341513043,1730942966846,-500.0,0.0003101,30]
[341513044,1730942966865,-500.0,0.0003101,30]
[341513045,1730942966884,-500.0,0.0003101,30]
[341513046,1730942966903,-500.0,0.0003101,30]
[341513047,1730942966922,-500.0,0.0003101,30]
[341513048,1730942966941,-500.0,0.0003101,30]
[341513049,1730942966960,-520.04604884,0.0003101,30]
[341513050,1730942966979,-2159.89723387,0.0003104,2]
[341513051,1730942966998,-152.0,0.00031132,5]
[341513052,1730942967021,-11549.0,0.000314,5]
[341513053,1730942967039,-14792.04567665,0.0003143,4]
[341513054,1730942967058,-87431.61036043,0.0003153,7]
[341513055,1730942974593,-37447.16441813,0.0003153,7]
[341513056,1730942974613,-152.0,0.00031678,6]
[341513057,1730942974633,-173.34,0.00031732,2]
[341513058,1730942974654,-318.14,0.00031867,120]
[341513059,1730942974672,-537.01831357,0.0003217,5]
[341513060,1730942974692,-1003.88,0.00032213,2]
[341513061,1730942974712,-152.0,0.00032223,7]
[341513062,1730942974734,-7178.02338303,0.0003227,3]
[341513069,1730943031137,165.0,0.0002,2]
[341513077,1730943031787,-193.0,0.000314,5]
[341513080,1730943031796,-12830.87153569,0.00031578,15]
[341513082,1730943031806,-324.4805173,0.000319,2]
[341513085,1730943031815,-335.08,0.0003199,3]
[341513088,1730943031824,-34624.61275694,0.00032,3]
[341513114,1730943031982,-3987.45282922,0.00032,3]
[341513124,1730943032169,-500.0,0.00031999,2]
[341513125,1730943032179,-7200.02921947,0.00032,3]
[341513126,1730943032191,-295.68813432,0.00032,3]
[341513127,1730943032204,-107973.85496234,0.00032,3]
[341513128,1730943032216,-1973.47855154,0.00032,3]
[341513129,1730943032228,-1081.67849063,0.00032,3]
[341513130,1730943032239,-82866.30000005,0.00032,3]
[341513131,1730943032252,-14927.36994088,0.00032,3]
[341513138,1730943037909,-215.31776449,0.0003199,2]
[341513139,1730943037919,-215.31776449,0.0003199,2]
[341513140,1730943037928,-215.31776449,0.0003199,2]
[341513141,1730943037937,-192.09516389,0.00031999,2]
[341513142,1730943037947,-500.0,0.00031999,2]
[341513143,1730943037956,-153.10162459,0.00031999,2]
[341513144,1730943037967,-346.89837541,0.00031999,2]
[341513145,1730943037976,-500.0,0.00031999,2]
[341513146,1730943037985,-500.0,0.00031999,2]
[341513147,1730943037994,-193.46016483,0.00031999,2]
[341513148,1730943038004,-29.06677362,0.00032,3]
[341513149,1730943038015,-1580.99261643,0.00032,3]
[341513150,1730943038025,-1562.17360994,0.00032,3]
[341513151,1730943038037,-75757.93765902,0.00032,3]
[341513163,1730943038773,-519.98,0.00032,3]
[341513165,1730943038784,-601.94567442,0.00032,3]
[341513180,1730943038915,-2296.61744625,0.00032,3]
[341513185,1730943039001,-1509.12,0.00032,3]
[341513186,1730943039013,-482.10978903,0.00032,3]
[341513187,1730943039024,-537.0,0.00032,3]
[341513198,1730943039200,-271.32874541,0.00032,3]
[341513259,1730943039757,-341.16884404,0.00032,3]
[341513272,1730943039910,-32479.93063208,0.00032,3]
[341513275,1730943039924,-450.26881467,0.00032,3]
[341513296,1730943041176,-4006.58049806,0.00032,3]
[341513297,1730943041188,-3496.95475942,0.00032,3]
[341513298,1730943041201,-28019.2140588,0.00032,3]
[341513306,1730943042770,-1829.96652278,0.00032,3]
[341513324,1730943042918,-811.45968241,0.00032,3]
[341513325,1730943043210,-9087.35824681,0.00032,3]
[341513326,1730943043316,-3129.58270526,0.00032,3]
[341513327,1730943043331,-682.36978236,0.00032,3]
[341513328,1730943043440,-6.00177183,0.00032,3]
[341513329,1730943043452,-4346.08326854,0.00032,3]
[341513330,1730943043480,-9018.59284828,0.00032,3]
[341513331,1730943043492,-263.01426817,0.00032,3]
[341513332,1730943043503,-3708.58347445,0.00032,3]
[341513333,1730943043514,-5004.12800017,0.00032,3]
[341513334,1730943043526,-3110.65082566,0.00032,3]
[341513336,1730943043538,-482.04424462,0.00032,3]
[341513356,1730943043668,-3704.05147398,0.00032,3]
[341513358,1730943043679,-377.338759,0.00032,3]
[341513360,1730943043690,-9772.03556204,0.00032,3]
[341513483,1730943046093,-502.39,0.00032,3]
[341513485,1730943046106,-2636.98080938,0.00032,3]
[341513503,1730943046266,-5514.68205,0.00032,3]
[341513505,1730943046279,-10045.857,0.00032,3]
[341513507,1730943046293,-901.69110608,0.00032,3]
[341513508,1730943046307,-11415.66389546,0.00032,3]
[341513510,1730943046319,-6132.62161919,0.00032,3]
[341513512,1730943046333,-380.17238216,0.00032,3]
[341513516,1730943046388,-2428.45963624,0.00032,3]
[341513518,1730943046399,-62494.66044775,0.00032,3]
[341513519,1730943046411,-14983.6989897,0.00032,3]
[341513520,1730943046423,-2788.43548648,0.00032,3]
[341513521,1730943046435,-2354.41517386,0.00032,3]
[341513522,1730943046446,-42377.66671244,0.00032,3]
[341513523,1730943046479,-4403.04167378,0.00032,3]
[341513524,1730943046491,-2394.89673906,0.00032,3]
[341513525,1730943046503,-269082.63527221,0.00032,3]
[341513526,1730943046514,-6709.73352973,0.00032,3]
[341513527,1730943046524,-259897.91721625,0.00032,2]
[341513529,1730943046537,-86360.91875979,0.00032,2]
[341513929,1730943143383,180.7,0.00015342,2]
[341513931,1730943286947,6452.83397422,0.0002,2]
[341513932,1730943286970,22900.62729996,0.0002,2]
[341513933,1730943286993,96.53872582,0.0002,2]
[341513934,1730943301488,300.0,0.00019725,2]
[341513951,1730943801995,155.85,0.00015342,2]
[341513952,1730943878263,150.0,0.0002003,2]
[341513957,1730944026125,-250.0,0.00021,2]
[341513958,1730944026146,-173.84683126,0.000229,2]
[341513959,1730944026168,-300.0,0.00023,2]
[341513960,1730944026188,-200.0,0.00023,2]
[341513961,1730944026210,-161.06,0.00023087,2]
[341513962,1730944026230,-1464.78186371,0.00023087,2]
[341513963,1730944039094,-930.49477189,0.00023087,2]
[341513964,1730944039131,-1827.29714965,0.00023087,2]
[341513965,1730944039151,-161.0,0.0002401,2]
[341513966,1730944039172,-350.0,0.00025,2]
[341513967,1730944039192,-1001.00014632,0.00025,60]
[341513968,1730944039212,-207.0,0.000253,10]
[341513969,1730944039234,-1271.9,0.00026615,2]
[341513970,1730944039256,-4310.43395897,0.00026765,2]
[341513971,1730944145104,-1649.345194,0.000269,2]
[341513972,1730944147121,-2941.795262,0.000269,2]
[341513973,1730944153108,-925.0405808,0.000269,2]
[341513974,1730944154164,-887.3172972,0.000269,2]
[341513975,1730944154184,-398.5675999,0.000269,2]
[341513976,1730944154207,-3057.89,0.00027,2]
[341513977,1730944154227,-400.0,0.00027,2]
[341513978,1730944154247,-14539.42,0.00027,2]
[341513979,1730944154267,-160.08,0.00027446,2]
[341513980,1730944154286,-993.0,0.000275,3]
[341513981,1730944155111,-1271.9,0.00028879,2]
[341513982,1730944155132,-865.36,0.00028925,2]
[341513983,1730944155152,-5741.06,0.00028925,2]
[341513984,1730944155171,-672.02,0.00028925,2]
[341513985,1730944155193,-256.08,0.00028963,120]
[341513986,1730944155215,-150.99,0.00028963,2]
[341513987,1730944155236,-450.0,0.00029,2]
[341513988,1730944155257,-23900.0,0.0002905,2]
[341513989,1730944155278,-250.0,0.00029059,2]
[341513990,1730944155298,-271.11,0.00029144,2]
[341513991,1730944155318,-280.59,0.00029152,2]
[341513992,1730944155338,-250.0,0.00029152,2]
[341513993,1730944155358,-160.35,0.00029248,2]
[341513994,1730944155380,-226.48,0.00029297,30]
[341513995,1730944155400,-405.99,0.00029305,2]
[341513996,1730944155421,-161.232,0.0002938,2]
[341513997,1730944155442,-865.36,0.0002939,2]
[341513998,1730944155466,-150.0,0.00029467,2]
[341513999,1730944155486,-227.35,0.00029586,2]
[341514000,1730944155505,-200.0,0.00029586,2]
[341514001,1730944155525,-169.11,0.00029663,2]
[341514002,1730944155545,-161.01,0.00029706,2]
[341514003,1730944155565,-865.36,0.00029855,2]
[341514004,1730944155586,-326.16,0.0002999,10]
[341514005,1730944155606,-771.59316855,0.00029999,2]
[341514006,1730944155629,-3198.2773515,0.00029999,2]
[341514007,1730944155648,-191.59375,0.0003,2]
[341514008,1730944155668,-493.4195,0.0003,2]
[341514009,1730944155688,-34357.28186995,0.0003,2]
[341514010,1730944155786,14251.021311,0.00026765,2]
[341514018,1730944232047,-540.85,0.00029688,2]
[341514019,1730944232057,-397.06234997,0.000299,2]
[341514020,1730944232067,-2273.73803433,0.0003,2]
[341514021,1730944232079,-1002.18030121,0.0003,2]